[Event "Titled Tuesday Blitz August 22 Early 2023"]
[White "laidfrq"]
[Black "Mazurkiewicz, Michal"]
[BlackFideId "1124943"]
[WhiteElo "2335"]
[BlackElo "2510"]
[Result "1-0"]
[Round "2"]
[TimeControl "180+1"]
[Date "2023.08.22"]
[WhiteClock "0:00:14"]
[BlackClock "0:00:09"]
[Board "183"]

1. e4 {[%clk 0:03:00]}  d6 {[%clk 0:03:00]} 2. d4 {[%clk 0:02:59]}  Nf6 {[%clk 0:03:00]} 3. Nc3 {[%clk 0:03:00]}  c6 {[%clk 0:03:01]} 4. f4 {[%clk 0:02:57]}  Qb6 {[%clk 0:03:00]} 5. Nf3 {[%clk 0:02:54]}  Bg4 {[%clk 0:02:59]} 6. Be2 {[%clk 0:02:51]}  e6 {[%clk 0:02:59]} 7. O-O {[%clk 0:02:48]}  d5 {[%clk 0:02:59]} 8. e5 {[%clk 0:02:46]}  Nfd7 {[%clk 0:02:59]} 9. h3 {[%clk 0:02:44]}  Bxf3 {[%clk 0:02:59]} 10. Bxf3 {[%clk 0:02:44]}  c5 {[%clk 0:02:59]} 11. Na4 {[%clk 0:02:42]}  Qa5 {[%clk 0:02:59]} 12. c4 {[%clk 0:02:34]}  cxd4 {[%clk 0:02:53]} 13. Bd2 {[%clk 0:02:31]}  Bb4 {[%clk 0:02:48]} 14. Bxb4 {[%clk 0:02:30]}  Qxb4 {[%clk 0:02:49]} 15. cxd5 {[%clk 0:02:31]}  exd5 {[%clk 0:02:40]} 16. Bxd5 {[%clk 0:02:20]}  Nc6 {[%clk 0:02:38]} 17. a3 {[%clk 0:02:18]}  Qa5 {[%clk 0:02:27]} 18. Qb3 {[%clk 0:02:13]}  O-O {[%clk 0:02:14]} 19. e6 {[%clk 0:02:11]}  Nf6 {[%clk 0:01:55]} 20. exf7+ {[%clk 0:02:11]}  Kh8 {[%clk 0:01:55]} 21. Be6 {[%clk 0:01:55]}  d3 {[%clk 0:01:32]} 22. Rad1 {[%clk 0:01:46]}  Nd4 {[%clk 0:01:31]} 23. Qc4 {[%clk 0:01:22]}  Nxe6 {[%clk 0:01:27]} 24. Rxd3 {[%clk 0:01:22]}  Nc7 {[%clk 0:01:07]} 25. Nc5 {[%clk 0:01:17]}  Qb5 {[%clk 0:01:07]} 26. Qd4 {[%clk 0:01:09]}  Ncd5 {[%clk 0:00:58]} 27. g4 {[%clk 0:00:58]}  Rac8 {[%clk 0:00:17]} 28. Ne6 {[%clk 0:00:54]}  Rc4 {[%clk 0:00:18]} 29. Qe5 {[%clk 0:00:47]}  Re4 {[%clk 0:00:16]} 30. Qd6 {[%clk 0:00:46]}  Rxf7 {[%clk 0:00:04]} 31. Qd8+ {[%clk 0:00:20]}  Qe8 {[%clk 0:00:04]} 32. Rxd5 {[%clk 0:00:19]}  Rxe6 {[%clk 0:00:04]} 33. Qa5 {[%clk 0:00:18]}  Rf8 {[%clk 0:00:02]} 34. f5 {[%clk 0:00:17]}  Nxd5 {[%clk 0:00:03]} 35. fxe6 {[%clk 0:00:16]}  Rxf1+ {[%clk 0:00:04]} 36. Kxf1 {[%clk 0:00:17]}  Nf6 {[%clk 0:00:04]} 37. Qf5 {[%clk 0:00:16]}  Qe7 {[%clk 0:00:03]} 38. b4 {[%clk 0:00:15]}  g6 {[%clk 0:00:03]} 39. Qe5 {[%clk 0:00:15]}  Kg8 {[%clk 0:00:04]} 40. g5 {[%clk 0:00:15]}  Ne8 {[%clk 0:00:04]} 41. Ke2 {[%clk 0:00:14]}  Ng7 {[%clk 0:00:04]} 42. Qb8+ {[%clk 0:00:14]}  Ne8 {[%clk 0:00:04]} 43. Kd3 {[%clk 0:00:14]}  Qxe6 {[%clk 0:00:03]} 44. Qxb7 {[%clk 0:00:14]}  Qd6+ {[%clk 0:00:03]} 45. Kc4 {[%clk 0:00:12]}  Qe6+ {[%clk 0:00:04]} 46. Kc3 {[%clk 0:00:12]}  Nd6 {[%clk 0:00:04]} 47. Qxa7 {[%clk 0:00:12]}  Qf7 {[%clk 0:00:04]} 48. Qb8+ {[%clk 0:00:11]}  Kg7 {[%clk 0:00:05]} 49. Qxd6 {[%clk 0:00:11]}  Qf3+ {[%clk 0:00:05]} 50. Kc4 {[%clk 0:00:10]}  Qe2+ {[%clk 0:00:06]} 51. Kc5 {[%clk 0:00:09]}  Qe3+ {[%clk 0:00:06]} 52. Qd4+ {[%clk 0:00:09]}  Qxd4+ {[%clk 0:00:06]} 53. Kxd4 {[%clk 0:00:10]}  Kf8 {[%clk 0:00:07]} 54. a4 {[%clk 0:00:11]}  Ke7 {[%clk 0:00:08]} 55. a5 {[%clk 0:00:11]}  Ke6 {[%clk 0:00:09]} 56. b5 {[%clk 0:00:12]}  Kf5 {[%clk 0:00:09]} 57. a6 {[%clk 0:00:13]}  Kxg5 {[%clk 0:00:10]} 58. a7 {[%clk 0:00:14]}  Kh4 {[%clk 0:00:11]} 59. a8=Q {[%clk 0:00:15]}  h5 {[%clk 0:00:12]} 60. Qg8 {[%clk 0:00:15]}  g5 {[%clk 0:00:12]} 61. Ke4 {[%clk 0:00:14]}  g4 {[%clk 0:00:09]} 62. hxg4 {[%clk 0:00:14]} 1-0


[Site "https://www.chess.com"]

[Event "Titled Tuesday Blitz August 22 Early 2023"]
[White "Dinosaurio_1975"]
[Black "Bifulco, Michel"]
[BlackFideId "828580"]
[WhiteElo "2509"]
[BlackElo "2331"]
[Result "1-0"]
[Round "2"]
[TimeControl "180+1"]
[Date "2023.08.22"]
[WhiteClock "0:00:25"]
[BlackClock "0:01:21"]
[Board "184"]

1. e4 {[%clk 0:03:00]}  e5 {[%clk 0:02:59]} 2. Nf3 {[%clk 0:03:01]}  Nc6 {[%clk 0:02:59]} 3. Bc4 {[%clk 0:03:01]}  Nf6 {[%clk 0:02:58]} 4. O-O {[%clk 0:03:01]}  Nxe4 {[%clk 0:02:54]} 5. Re1 {[%clk 0:02:54]}  d5 {[%clk 0:02:52]} 6. Bb5 {[%clk 0:02:52]}  Bc5 {[%clk 0:02:25]} 7. d4 {[%clk 0:02:32]}  exd4 {[%clk 0:02:25]} 8. Nxd4 {[%clk 0:02:00]}  O-O {[%clk 0:02:24]} 9. Bxc6 {[%clk 0:02:00]}  bxc6 {[%clk 0:02:24]} 10. Be3 {[%clk 0:02:01]}  Qf6 {[%clk 0:02:17]} 11. f3 {[%clk 0:01:37]}  Ng5 {[%clk 0:02:16]} 12. Nc3 {[%clk 0:01:32]}  Ne6 {[%clk 0:02:13]} 13. Nxc6 {[%clk 0:01:11]}  Bxe3+ {[%clk 0:01:52]} 14. Rxe3 {[%clk 0:01:12]}  d4 {[%clk 0:01:52]} 15. Nd5 {[%clk 0:01:10]}  Qg5 {[%clk 0:01:45]} 16. Re5 {[%clk 0:01:09]}  Qh6 {[%clk 0:01:37]} 17. Nxd4 {[%clk 0:01:01]}  Rd8 {[%clk 0:01:25]} 18. Nf5 {[%clk 0:00:25]}  Qg5 {[%clk 0:01:25]} 19. Nfe7+ {[%clk 0:00:24]}  Qxe7 {[%clk 0:01:21]} 20. Nxe7+ {[%clk 0:00:25]} 1-0


[Site "https://www.chess.com"]

[Event "Titled Tuesday Blitz August 22 Early 2023"]
[White "Ardila, Oscar Humberto"]
[Black "Jaskolka, Tomasz"]
[WhiteFideId "4404742"]
[BlackFideId "1170791"]
[WhiteElo "2323"]
[BlackElo "2509"]
[Result "0-1"]
[Round "2"]
[TimeControl "180+1"]
[Date "2023.08.22"]
[WhiteClock "0:00:55"]
[BlackClock "0:00:57"]
[Board "186"]

1. d4 {[%clk 0:03:00]}  d5 {[%clk 0:03:00]} 2. c4 {[%clk 0:03:00]}  e5 {[%clk 0:03:00]} 3. dxe5 {[%clk 0:02:58]}  d4 {[%clk 0:03:01]} 4. Nf3 {[%clk 0:02:58]}  Nc6 {[%clk 0:03:02]} 5. g3 {[%clk 0:02:59]}  Be6 {[%clk 0:03:00]} 6. b3 {[%clk 0:02:56]}  Qd7 {[%clk 0:02:56]} 7. Bg2 {[%clk 0:02:56]}  O-O-O {[%clk 0:02:57]} 8. O-O {[%clk 0:02:56]}  h5 {[%clk 0:02:58]} 9. h4 {[%clk 0:02:55]}  f6 {[%clk 0:02:58]} 10. Bf4 {[%clk 0:02:49]}  fxe5 {[%clk 0:02:53]} 11. Nxe5 {[%clk 0:02:49]}  Nxe5 {[%clk 0:02:53]} 12. Bxe5 {[%clk 0:02:50]}  Nf6 {[%clk 0:02:50]} 13. Nd2 {[%clk 0:02:48]}  Ng4 {[%clk 0:02:45]} 14. Bf4 {[%clk 0:02:47]}  Bd6 {[%clk 0:02:45]} 15. Bg5 {[%clk 0:02:45]}  Be7 {[%clk 0:02:44]} 16. Ne4 {[%clk 0:02:45]}  Bf5 {[%clk 0:02:40]} 17. Qd2 {[%clk 0:02:44]}  Rde8 {[%clk 0:02:33]} 18. Bxe7 {[%clk 0:02:39]}  Rxe7 {[%clk 0:02:32]} 19. Nc5 {[%clk 0:02:35]}  Qd6 {[%clk 0:02:24]} 20. Nxb7 {[%clk 0:02:27]}  Qf6 {[%clk 0:02:12]} 21. Nc5 {[%clk 0:02:21]}  g5 {[%clk 0:02:05]} 22. Qb4 {[%clk 0:02:19]}  Qb6 {[%clk 0:02:01]} 23. Qa3 {[%clk 0:02:03]}  gxh4 {[%clk 0:01:58]} 24. gxh4 {[%clk 0:02:02]}  Rg8 {[%clk 0:01:43]} 25. Qa6+ {[%clk 0:02:01]}  Qxa6 {[%clk 0:01:41]} 26. Nxa6 {[%clk 0:02:02]}  Rxe2 {[%clk 0:01:40]} 27. Rae1 {[%clk 0:01:38]}  Rxa2 {[%clk 0:01:26]} 28. Nc5 {[%clk 0:01:37]}  Ne3 {[%clk 0:01:22]} 29. Rxe3 {[%clk 0:01:24]}  dxe3 {[%clk 0:01:21]} 30. Kh1 {[%clk 0:01:19]}  Rxf2 {[%clk 0:01:16]} 31. Bb7+ {[%clk 0:01:16]}  Kb8 {[%clk 0:01:14]} 32. Re1 {[%clk 0:01:14]}  Rf4 {[%clk 0:01:08]} 33. Bg2 {[%clk 0:01:04]}  Rxh4+ {[%clk 0:01:08]} 34. Kg1 {[%clk 0:01:05]}  Bh3 {[%clk 0:01:04]} 35. Re2 {[%clk 0:00:55]}  Rhg4 {[%clk 0:00:57]} 0-1


[Site "https://www.chess.com"]

[Event "Titled Tuesday Blitz August 22 Early 2023"]
[White "FromTexas54"]
[Black "Davidson, Kevin"]
[BlackFideId "2056810"]
[WhiteElo "2505"]
[BlackElo "2321"]
[Result "1-0"]
[Round "2"]
[TimeControl "180+1"]
[Date "2023.08.22"]
[WhiteClock "0:02:06"]
[BlackClock "0:00:00"]
[Board "188"]

1. e4 {[%clk 0:03:00]}  c5 {[%clk 0:02:59]} 2. Nc3 {[%clk 0:03:00]}  a6 {[%clk 0:02:58]} 3. g3 {[%clk 0:03:00]}  b5 {[%clk 0:02:58]} 4. Bg2 {[%clk 0:03:01]}  Bb7 {[%clk 0:02:59]} 5. d3 {[%clk 0:03:01]}  e6 {[%clk 0:02:59]} 6. f4 {[%clk 0:03:00]}  Nf6 {[%clk 0:02:59]} 7. Nf3 {[%clk 0:03:00]}  b4 {[%clk 0:02:59]} 8. Ne2 {[%clk 0:03:00]}  d5 {[%clk 0:02:59]} 9. e5 {[%clk 0:03:00]}  Nfd7 {[%clk 0:02:59]} 10. O-O {[%clk 0:03:00]}  Nc6 {[%clk 0:03:00]} 11. g4 {[%clk 0:02:59]}  Be7 {[%clk 0:02:58]} 12. Ng3 {[%clk 0:02:59]}  a5 {[%clk 0:02:56]} 13. Kh1 {[%clk 0:02:59]}  a4 {[%clk 0:02:47]} 14. Re1 {[%clk 0:02:59]}  Qc7 {[%clk 0:02:41]} 15. f5 {[%clk 0:02:52]}  Ncxe5 {[%clk 0:02:36]} 16. Nxe5 {[%clk 0:02:51]}  Nxe5 {[%clk 0:02:36]} 17. Bf4 {[%clk 0:02:48]}  Bd6 {[%clk 0:02:36]} 18. fxe6 {[%clk 0:02:39]}  O-O {[%clk 0:02:19]} 19. Nf5 {[%clk 0:02:35]}  fxe6 {[%clk 0:02:05]} 20. Nxd6 {[%clk 0:02:35]}  Rxf4 {[%clk 0:02:04]} 21. Nxb7 {[%clk 0:02:34]}  Nxg4 {[%clk 0:01:57]} 22. Qe2 {[%clk 0:02:33]}  Nf2+ {[%clk 0:00:52]} 23. Kg1 {[%clk 0:02:30]}  Qxb7 {[%clk 0:00:50]} 24. Qxe6+ {[%clk 0:02:29]}  Kh8 {[%clk 0:00:46]} 25. Bxd5 {[%clk 0:02:14]}  Nh3+ {[%clk 0:00:16]} 26. Kg2 {[%clk 0:02:11]}  Qb8 {[%clk 0:00:00]} 27. Qxh3 {[%clk 0:02:06]} 1-0


[Site "https://www.chess.com"]

[Event "Titled Tuesday Blitz August 22 Early 2023"]
[White "kaanadayhamle"]
[Black "only_strong_moves"]
[WhiteElo "2318"]
[BlackElo "2503"]
[Result "1-0"]
[Round "2"]
[TimeControl "180+1"]
[Date "2023.08.22"]
[WhiteClock "0:00:24"]
[BlackClock "0:00:19"]
[Board "192"]

1. e4 {[%clk 0:03:00]}  e6 {[%clk 0:02:59]} 2. d4 {[%clk 0:03:00]}  d5 {[%clk 0:02:59]} 3. Nd2 {[%clk 0:03:01]}  c5 {[%clk 0:02:59]} 4. exd5 {[%clk 0:02:59]}  Qxd5 {[%clk 0:02:58]} 5. Ngf3 {[%clk 0:02:51]}  cxd4 {[%clk 0:02:57]} 6. Bc4 {[%clk 0:02:51]}  Qd6 {[%clk 0:02:56]} 7. O-O {[%clk 0:02:50]}  Nf6 {[%clk 0:02:57]} 8. Re1 {[%clk 0:02:49]}  Be7 {[%clk 0:02:54]} 9. Nb3 {[%clk 0:02:49]}  Nc6 {[%clk 0:02:53]} 10. Nbxd4 {[%clk 0:02:50]}  Nxd4 {[%clk 0:02:53]} 11. Qxd4 {[%clk 0:02:49]}  Qxd4 {[%clk 0:02:51]} 12. Nxd4 {[%clk 0:02:49]}  O-O {[%clk 0:02:48]} 13. Bf4 {[%clk 0:02:49]}  Bd7 {[%clk 0:02:43]} 14. Rad1 {[%clk 0:02:48]}  Rac8 {[%clk 0:02:40]} 15. Bb3 {[%clk 0:02:48]}  Rfd8 {[%clk 0:02:37]} 16. c3 {[%clk 0:02:48]}  a5 {[%clk 0:02:34]} 17. a4 {[%clk 0:02:45]}  Bf8 {[%clk 0:02:31]} 18. Bg5 {[%clk 0:02:41]}  h6 {[%clk 0:02:16]} 19. Bxf6 {[%clk 0:02:37]}  gxf6 {[%clk 0:02:17]} 20. Rd3 {[%clk 0:02:26]}  f5 {[%clk 0:02:07]} 21. Red1 {[%clk 0:02:23]}  Be7 {[%clk 0:02:01]} 22. Nxf5 {[%clk 0:02:17]}  exf5 {[%clk 0:01:42]} 23. Rxd7 {[%clk 0:02:16]}  Kf8 {[%clk 0:01:19]} 24. Kf1 {[%clk 0:02:02]}  Rxd7 {[%clk 0:01:16]} 25. Rxd7 {[%clk 0:02:03]}  b6 {[%clk 0:01:14]} 26. Rb7 {[%clk 0:02:02]}  Rc6 {[%clk 0:01:08]} 27. Ke2 {[%clk 0:01:54]}  Rg6 {[%clk 0:01:00]} 28. g3 {[%clk 0:01:53]}  f4 {[%clk 0:00:56]} 29. Kf3 {[%clk 0:01:13]}  fxg3 {[%clk 0:00:56]} 30. fxg3 {[%clk 0:01:14]}  Rf6+ {[%clk 0:00:44]} 31. Kg2 {[%clk 0:01:10]}  Bc5 {[%clk 0:00:43]} 32. Bd5 {[%clk 0:01:09]}  Rf2+ {[%clk 0:00:38]} 33. Kh3 {[%clk 0:01:09]}  f5 {[%clk 0:00:28]} 34. b4 {[%clk 0:01:03]}  Be3 {[%clk 0:00:15]} 35. bxa5 {[%clk 0:00:57]}  bxa5 {[%clk 0:00:16]} 36. c4 {[%clk 0:00:51]}  f4 {[%clk 0:00:12]} 37. Rb3 {[%clk 0:00:19]}  Bc5 {[%clk 0:00:09]} 38. Rf3 {[%clk 0:00:16]}  Rxf3 {[%clk 0:00:06]} 39. Bxf3 {[%clk 0:00:17]}  fxg3 {[%clk 0:00:07]} 40. hxg3 {[%clk 0:00:18]}  Ke7 {[%clk 0:00:07]} 41. Kg4 {[%clk 0:00:18]}  Kf6 {[%clk 0:00:07]} 42. Kh5 {[%clk 0:00:18]}  Kg7 {[%clk 0:00:07]} 43. Bd5 {[%clk 0:00:17]}  Bd6 {[%clk 0:00:07]} 44. Kg4 {[%clk 0:00:17]}  Kf6 {[%clk 0:00:07]} 45. Kf3 {[%clk 0:00:17]}  Kf5 {[%clk 0:00:05]} 46. g4+ {[%clk 0:00:17]}  Kg5 {[%clk 0:00:05]} 47. Be6 {[%clk 0:00:18]}  Bb4 {[%clk 0:00:06]} 48. Ke4 {[%clk 0:00:18]}  Kf6 {[%clk 0:00:05]} 49. Kd5 {[%clk 0:00:18]}  Ke7 {[%clk 0:00:04]} 50. Bf5 {[%clk 0:00:18]}  Kd8 {[%clk 0:00:04]} 51. Kc6 {[%clk 0:00:18]}  Bc3 {[%clk 0:00:03]} 52. c5 {[%clk 0:00:17]}  Bb4 {[%clk 0:00:04]} 53. Kb6 {[%clk 0:00:17]}  Ke7 {[%clk 0:00:03]} 54. c6 {[%clk 0:00:17]}  Bd6 {[%clk 0:00:02]} 55. c7 {[%clk 0:00:18]}  Bxc7+ {[%clk 0:00:03]} 56. Kxc7 {[%clk 0:00:19]}  Kf6 {[%clk 0:00:04]} 57. Bc8 {[%clk 0:00:19]}  Kg5 {[%clk 0:00:05]} 58. Kb6 {[%clk 0:00:19]}  Kf4 {[%clk 0:00:06]} 59. Kxa5 {[%clk 0:00:19]}  Kg5 {[%clk 0:00:07]} 60. Kb6 {[%clk 0:00:20]}  Kf4 {[%clk 0:00:07]} 61. a5 {[%clk 0:00:20]}  Kg5 {[%clk 0:00:08]} 62. a6 {[%clk 0:00:21]}  Kf4 {[%clk 0:00:09]} 63. a7 {[%clk 0:00:22]}  Kg5 {[%clk 0:00:10]} 64. a8=Q {[%clk 0:00:22]}  Kf4 {[%clk 0:00:11]} 65. Qd5 {[%clk 0:00:22]}  Kg3 {[%clk 0:00:11]} 66. Qh5 {[%clk 0:00:22]}  Kf4 {[%clk 0:00:11]} 67. Qxh6+ {[%clk 0:00:22]}  Kg3 {[%clk 0:00:12]} 68. g5 {[%clk 0:00:23]}  Kf4 {[%clk 0:00:13]} 69. g6+ {[%clk 0:00:23]}  Kg3 {[%clk 0:00:14]} 70. g7 {[%clk 0:00:24]}  Kf3 {[%clk 0:00:14]} 71. g8=Q {[%clk 0:00:23]}  Kf2 {[%clk 0:00:15]} 72. Qf7+ {[%clk 0:00:22]}  Ke2 {[%clk 0:00:16]} 73. Qhe6+ {[%clk 0:00:23]}  Kd3 {[%clk 0:00:17]} 74. Qf3+ {[%clk 0:00:23]}  Kc2 {[%clk 0:00:18]} 75. Qee2+ {[%clk 0:00:23]}  Kb1 {[%clk 0:00:19]} 76. Qff1# {[%clk 0:00:24]} 1-0


[Site "https://www.chess.com"]

[Event "Titled Tuesday Blitz August 22 Early 2023"]
[White "Bazilius, Augustinas"]
[Black "Wang2007"]
[WhiteFideId "12832251"]
[WhiteElo "2502"]
[BlackElo "2315"]
[Result "0-1"]
[Round "2"]
[TimeControl "180+1"]
[Date "2023.08.22"]
[WhiteClock "0:00:03"]
[BlackClock "0:01:14"]
[Board "193"]

1. d4 {[%clk 0:03:00]}  Nf6 {[%clk 0:02:59]} 2. c4 {[%clk 0:03:01]}  g6 {[%clk 0:03:00]} 3. Nc3 {[%clk 0:03:00]}  d5 {[%clk 0:03:00]} 4. cxd5 {[%clk 0:02:56]}  Nxd5 {[%clk 0:03:01]} 5. Bd2 {[%clk 0:02:57]}  Bg7 {[%clk 0:03:00]} 6. e4 {[%clk 0:02:56]}  Nxc3 {[%clk 0:03:00]} 7. Bxc3 {[%clk 0:02:57]}  c5 {[%clk 0:03:00]} 8. Nf3 {[%clk 0:02:34]}  cxd4 {[%clk 0:02:59]} 9. Bxd4 {[%clk 0:02:32]}  O-O {[%clk 0:02:59]} 10. Bxg7 {[%clk 0:02:32]}  Kxg7 {[%clk 0:03:00]} 11. Qxd8 {[%clk 0:02:28]}  Rxd8 {[%clk 0:02:59]} 12. Bb5 {[%clk 0:02:23]}  a6 {[%clk 0:02:55]} 13. Ba4 {[%clk 0:02:23]}  b5 {[%clk 0:02:52]} 14. Bb3 {[%clk 0:02:20]}  Bb7 {[%clk 0:02:44]} 15. Nd2 {[%clk 0:02:15]}  Nc6 {[%clk 0:02:43]} 16. f3 {[%clk 0:02:07]}  Nd4 {[%clk 0:02:38]} 17. Rc1 {[%clk 0:01:45]}  Rd7 {[%clk 0:02:09]} 18. Nb1 {[%clk 0:00:47]}  Rad8 {[%clk 0:02:03]} 19. Nc3 {[%clk 0:00:42]}  a5 {[%clk 0:02:00]} 20. Bd5 {[%clk 0:00:39]}  Ba6 {[%clk 0:01:48]} 21. Ne2 {[%clk 0:00:28]}  Nxe2 {[%clk 0:01:44]} 22. Kxe2 {[%clk 0:00:29]}  e6 {[%clk 0:01:44]} 23. Bc6 {[%clk 0:00:05]}  Rd2+ {[%clk 0:01:44]} 24. Ke3 {[%clk 0:00:06]}  g5 {[%clk 0:01:14]} 25. Rc5 {[%clk 0:00:03]}  R8d3# {[%clk 0:01:14]} 0-1


[Site "https://www.chess.com"]

[Event "Titled Tuesday Blitz August 22 Early 2023"]
[White "Coelho, Ramyres Santana"]
[Black "Czerw, Dawid"]
[WhiteFideId "2120690"]
[BlackFideId "1145746"]
[WhiteElo "2311"]
[BlackElo "2500"]
[Result "0-1"]
[Round "2"]
[TimeControl "180+1"]
[Date "2023.08.22"]
[WhiteClock "0:00:00"]
[BlackClock "0:00:13"]
[Board "196"]

1. e4 {[%clk 0:03:00]}  c5 {[%clk 0:03:00]} 2. Nf3 {[%clk 0:02:51]}  g6 {[%clk 0:03:00]} 3. d4 {[%clk 0:02:51]}  cxd4 {[%clk 0:03:01]} 4. Nxd4 {[%clk 0:02:51]}  Nc6 {[%clk 0:03:01]} 5. Nxc6 {[%clk 0:02:51]}  bxc6 {[%clk 0:03:01]} 6. Qd4 {[%clk 0:02:50]}  Nf6 {[%clk 0:03:01]} 7. Nc3 {[%clk 0:02:49]}  Bg7 {[%clk 0:02:56]} 8. e5 {[%clk 0:02:48]}  Ng8 {[%clk 0:02:57]} 9. Be2 {[%clk 0:02:41]}  Qc7 {[%clk 0:02:56]} 10. Bf4 {[%clk 0:02:38]}  Nh6 {[%clk 0:02:46]} 11. O-O-O {[%clk 0:02:33]}  Nf5 {[%clk 0:02:45]} 12. Qe4 {[%clk 0:02:33]}  Qb6 {[%clk 0:02:41]} 13. g4 {[%clk 0:02:29]}  Nh6 {[%clk 0:02:36]} 14. Be3 {[%clk 0:02:18]}  Qa5 {[%clk 0:02:30]} 15. f4 {[%clk 0:02:16]}  Rb8 {[%clk 0:02:22]} 16. Qa4 {[%clk 0:01:51]}  Qc7 {[%clk 0:02:06]} 17. Qxa7 {[%clk 0:01:45]}  Rb7 {[%clk 0:02:03]} 18. Qc5 {[%clk 0:01:44]}  O-O {[%clk 0:01:58]} 19. h4 {[%clk 0:01:41]}  d6 {[%clk 0:01:50]} 20. exd6 {[%clk 0:01:37]}  exd6 {[%clk 0:01:49]} 21. Qxd6 {[%clk 0:01:36]}  Qa5 {[%clk 0:01:46]} 22. Qc5 {[%clk 0:01:11]}  Qa8 {[%clk 0:01:16]} 23. Bd4 {[%clk 0:01:07]}  Bxd4 {[%clk 0:01:11]} 24. Rxd4 {[%clk 0:01:03]}  Bxg4 {[%clk 0:01:10]} 25. Bxg4 {[%clk 0:01:02]}  Nxg4 {[%clk 0:01:10]} 26. h5 {[%clk 0:00:58]}  Qe8 {[%clk 0:00:58]} 27. hxg6 {[%clk 0:00:51]}  Qe3+ {[%clk 0:00:52]} 28. Kb1 {[%clk 0:00:50]}  hxg6 {[%clk 0:00:44]} 29. Rc4 {[%clk 0:00:33]}  Qf2 {[%clk 0:00:25]} 30. f5 {[%clk 0:00:12]}  Qxf5 {[%clk 0:00:21]} 31. Rh8+ {[%clk 0:00:08]}  Kxh8 {[%clk 0:00:20]} 32. Qxf8+ {[%clk 0:00:09]}  Kh7 {[%clk 0:00:21]} 33. a3 {[%clk 0:00:04]}  Rd7 {[%clk 0:00:19]} 34. Qc5 {[%clk 0:00:03]}  Rd5 {[%clk 0:00:17]} 35. Qxc6 {[%clk 0:00:03]}  Ne3 {[%clk 0:00:15]} 36. Rb4 {[%clk 0:00:01]}  Qxc2+ {[%clk 0:00:15]} 37. Ka2 {[%clk 0:00:01]}  Rd2 {[%clk 0:00:13]} 38. Rh4+ {[%clk 0:00:00]}  Kg7 {[%clk 0:00:13]} 0-1


[Site "https://www.chess.com"]

[Event "Titled Tuesday Blitz August 22 Early 2023"]
[White "Gogolev, Artem"]
[Black "Zaksaite, Salomeja"]
[WhiteFideId "4116615"]
[BlackFideId "12801496"]
[WhiteElo "2499"]
[BlackElo "2306"]
[Result "1-0"]
[Round "2"]
[TimeControl "180+1"]
[Date "2023.08.22"]
[WhiteClock "0:00:07"]
[BlackClock "0:00:00"]
[Board "198"]

1. d4 {[%clk 0:02:46]}  Nf6 {[%clk 0:02:58]} 2. c4 {[%clk 0:02:44]}  g6 {[%clk 0:02:59]} 3. Nf3 {[%clk 0:02:43]}  Bg7 {[%clk 0:02:58]} 4. g3 {[%clk 0:02:42]}  d6 {[%clk 0:02:57]} 5. Bg2 {[%clk 0:02:41]}  O-O {[%clk 0:02:58]} 6. O-O {[%clk 0:02:37]}  Nc6 {[%clk 0:02:58]} 7. Nc3 {[%clk 0:02:37]}  Bf5 {[%clk 0:02:58]} 8. h3 {[%clk 0:02:33]}  Qc8 {[%clk 0:02:31]} 9. g4 {[%clk 0:02:24]}  Bd7 {[%clk 0:02:30]} 10. d5 {[%clk 0:02:16]}  Na5 {[%clk 0:02:29]} 11. Qd3 {[%clk 0:02:15]}  c5 {[%clk 0:02:19]} 12. e4 {[%clk 0:02:08]}  a6 {[%clk 0:02:07]} 13. e5 {[%clk 0:02:05]}  Ne8 {[%clk 0:01:57]} 14. Bg5 {[%clk 0:02:04]}  f6 {[%clk 0:01:55]} 15. exf6 {[%clk 0:01:13]}  exf6 {[%clk 0:01:56]} 16. Bf4 {[%clk 0:01:08]}  b5 {[%clk 0:01:56]} 17. Nd2 {[%clk 0:00:52]}  bxc4 {[%clk 0:01:51]} 18. Nxc4 {[%clk 0:00:45]}  Nxc4 {[%clk 0:01:50]} 19. Qxc4 {[%clk 0:00:44]}  Rb8 {[%clk 0:01:51]} 20. a3 {[%clk 0:00:20]}  Rxb2 {[%clk 0:01:49]} 21. Rfe1 {[%clk 0:00:14]}  f5 {[%clk 0:01:44]} 22. g5 {[%clk 0:00:13]}  Rc2 {[%clk 0:01:30]} 23. Rac1 {[%clk 0:00:13]}  Bxc3 {[%clk 0:01:24]} 24. Rxc2 {[%clk 0:00:11]}  Bxe1 {[%clk 0:01:24]} 25. Re2 {[%clk 0:00:11]}  Bb5 {[%clk 0:01:15]} 26. Qc2 {[%clk 0:00:10]}  Bxe2 {[%clk 0:01:14]} 27. Qxe2 {[%clk 0:00:11]}  Bc3 {[%clk 0:01:11]} 28. h4 {[%clk 0:00:10]}  Ng7 {[%clk 0:01:03]} 29. h5 {[%clk 0:00:11]}  Nxh5 {[%clk 0:01:00]} 30. Bxd6 {[%clk 0:00:11]}  Re8 {[%clk 0:01:00]} 31. Be7 {[%clk 0:00:11]}  Nf4 {[%clk 0:00:49]} 32. Qc4 {[%clk 0:00:11]}  Rxe7 {[%clk 0:00:25]} 33. d6+ {[%clk 0:00:11]}  Re6 {[%clk 0:00:11]} 34. Bf1 {[%clk 0:00:12]}  Bd4 {[%clk 0:00:08]} 35. Qa4 {[%clk 0:00:09]}  Qe8 {[%clk 0:00:07]} 36. Qxa6 {[%clk 0:00:07]}  Qd7 {[%clk 0:00:07]} 37. Bc4 {[%clk 0:00:07]}  Kf7 {[%clk 0:00:06]} 38. Qa8 {[%clk 0:00:07]}  Qxd6 {[%clk 0:00:05]} 39. Qh8 {[%clk 0:00:08]}  Nd5 {[%clk 0:00:03]} 40. Qxh7+ {[%clk 0:00:08]}  Bg7 {[%clk 0:00:03]} 41. Qh3 {[%clk 0:00:07]}  Nf4 {[%clk 0:00:00]} 42. Qb3 {[%clk 0:00:07]} 1-0


[Site "https://www.chess.com"]

[Event "Titled Tuesday Blitz August 22 Early 2023"]
[White "feuervogel1000000"]
[Black "Li, Hui"]
[BlackFideId "15400310"]
[WhiteElo "2499"]
[BlackElo "2304"]
[Result "1-0"]
[Round "2"]
[TimeControl "180+1"]
[Date "2023.08.22"]
[WhiteClock "0:01:32"]
[BlackClock "0:00:00"]
[Board "199"]

1. d4 {[%clk 0:03:00]}  d5 {[%clk 0:03:00]} 2. c4 {[%clk 0:02:58]}  e6 {[%clk 0:03:00]} 3. Nf3 {[%clk 0:02:58]}  Nf6 {[%clk 0:03:01]} 4. g3 {[%clk 0:02:58]}  Be7 {[%clk 0:03:01]} 5. Bg2 {[%clk 0:02:58]}  O-O {[%clk 0:03:02]} 6. O-O {[%clk 0:02:58]}  dxc4 {[%clk 0:03:03]} 7. Qc2 {[%clk 0:02:57]}  a6 {[%clk 0:03:03]} 8. Qxc4 {[%clk 0:02:57]}  b5 {[%clk 0:03:03]} 9. Qc2 {[%clk 0:02:56]}  Bb7 {[%clk 0:03:04]} 10. Bg5 {[%clk 0:02:53]}  Nbd7 {[%clk 0:02:52]} 11. Bxf6 {[%clk 0:02:50]}  Nxf6 {[%clk 0:02:49]} 12. Nbd2 {[%clk 0:02:41]}  Rc8 {[%clk 0:02:09]} 13. Nb3 {[%clk 0:02:38]}  Be4 {[%clk 0:02:05]} 14. Qc1 {[%clk 0:02:38]}  Qd5 {[%clk 0:01:34]} 15. Rd1 {[%clk 0:02:33]}  Qa8 {[%clk 0:01:06]} 16. Nc5 {[%clk 0:02:30]}  Bd5 {[%clk 0:00:58]} 17. a4 {[%clk 0:02:26]}  b4 {[%clk 0:00:54]} 18. a5 {[%clk 0:02:15]}  Rfd8 {[%clk 0:00:52]} 19. Ne1 {[%clk 0:01:55]}  Bxg2 {[%clk 0:00:43]} 20. Nxg2 {[%clk 0:01:55]}  Nd7 {[%clk 0:00:42]} 21. Qc4 {[%clk 0:01:48]}  Nxc5 {[%clk 0:00:30]} 22. dxc5 {[%clk 0:01:49]}  Qc6 {[%clk 0:00:30]} 23. Nf4 {[%clk 0:01:43]}  Qxc5 {[%clk 0:00:17]} 24. Qxa6 {[%clk 0:01:42]}  c6 {[%clk 0:00:07]} 25. Qb7 {[%clk 0:01:35]}  Qb5 {[%clk 0:00:03]} 26. Qxe7 {[%clk 0:01:34]}  Rxd1+ {[%clk 0:00:03]} 27. Rxd1 {[%clk 0:01:33]}  Qxa5 {[%clk 0:00:00]} 28. Nxe6 {[%clk 0:01:32]} 1-0


[Site "https://www.chess.com"]